fUST/lending_fUST_20250614
["ID","MTS","AMOUNT","RATE_DAILY","PERIOD"]
[365715463,1749845441136,-460.0,0.00023013,4]
[365715464,1749845441148,-460.0,0.00023013,4]
[365715465,1749845441160,-460.0,0.00023013,4]
[365715466,1749845441172,-682.28,0.00023013,4]
[365715467,1749845441183,-495.45,0.00023013,4]
[365715468,1749845441195,-460.0,0.00023013,4]
[365715469,1749845441208,-474.27,0.00023013,4]
[365715470,1749845441220,-460.0,0.00023013,4]
[365715471,1749845441232,-924.35,0.00023013,4]
[365715472,1749845441247,-151.0,0.00023013,7]
[365715473,1749845441259,-460.0,0.00023013,4]
[365715474,1749845441271,-781.06,0.00023013,4]
[365715475,1749845441283,-460.0,0.00023013,4]
[365715476,1749845441294,-151.0,0.00023013,7]
[365715477,1749845441305,-1397.18,0.00023013,4]
[365715478,1749845441317,-460.0,0.00023013,4]
[365715479,1749845441329,-460.0,0.00023013,4]
[365715480,1749845441340,-460.0,0.00023013,4]
[365715481,1749845441353,-1142.35,0.00023013,4]
[365715482,1749845441362,-460.0,0.00023013,4]
[365715483,1749845441371,-6689.93,0.00023013,4]
[365715484,1749845441381,-460.0,0.00023013,4]
[365715485,1749845441390,-460.0,0.00023013,4]
[365715486,1749845441400,-1821.09,0.00023013,4]
[365715487,1749845441410,-460.0,0.00023013,4]
[365715488,1749845441419,-1133.49,0.00023013,4]
[365715489,1749845441428,-2189.69,0.00023013,4]
[365715490,1749845441438,-460.0,0.00023013,4]
[365715491,1749845441447,-1115.91,0.00023013,4]
[365715492,1749845441456,-501.98508171,0.00023018,2]
[365715493,1749845441465,-500.0,0.00023018,2]
[365715494,1749845441475,-3000.0,0.0002302,2]
[365715495,1749845441484,-424.32678023,0.00023026,2]
[365715497,1749845441495,-160.0,0.00023026,2]
[365715499,1749845441505,-160.0,0.00023026,2]
[365715501,1749845441660,-229.78555783,0.00023026,2]
[365715502,1749845441676,-3000.0,0.0002303,2]
[365715503,1749845441686,-3119.30591631,0.00023038,8]
[365715504,1749845441695,-3000.0,0.0002304,2]
[365715505,1749845441705,-3000.0,0.0002305,2]
[365715506,1749845441714,-3000.0,0.0002306,2]
[365715507,1749845441723,-1500.0,0.00023068,2]
[365715508,1749845441732,-3000.0,0.0002307,2]
[365715509,1749845441745,-3000.0,0.0002308,2]
[365715510,1749845441754,-3000.0,0.0002309,2]
[365715511,1749845441763,-3000.0,0.000231,2]
[365715512,1749845441772,-151.0,0.000231,9]
[365715513,1749845441782,-3000.0,0.0002311,2]
[365715515,1749845441791,-3000.0,0.0002312,2]
[365715516,1749845441800,-3000.0,0.0002313,2]
[365715517,1749845441809,-3000.0,0.0002314,2]
[365715518,1749845441817,-151.0,0.00023141,7]
[365715519,1749845441826,-3119.30591631,0.00023141,8]
[365715520,1749845441836,-3000.0,0.0002315,2]
[365715521,1749845441845,-365.2062734,0.00023151,2]
[365715522,1749845441854,-3000.0,0.0002316,2]
[365715523,1749845441863,-3000.0,0.0002317,2]
[365715524,1749845441872,-3000.0,0.0002318,2]
[365715525,1749845441881,-500.0,0.0002318,2]
[365715526,1749845441891,-3000.0,0.0002319,2]
[365715527,1749845441901,-19500.70174184,0.00023199,2]
[365715528,1749845441910,-4962.943036,0.000232,2]
[365715529,1749845441919,-3119.30591631,0.00023245,8]
[365715530,1749845441928,-500.0,0.00023273,2]
[365715531,1749845441938,-500.0,0.00023273,2]
[365715532,1749845441947,-460.0,0.00023287,4]
[365715533,1749845441956,-460.0,0.00023287,4]
[365715534,1749845441966,-460.0,0.00023287,2]
[365715535,1749845441976,-460.0,0.00023287,4]
[365715536,1749845441986,-460.0,0.00023287,4]
[365715537,1749845442000,-1821.36,0.00023287,4]
[365715538,1749845442010,-1165.77,0.00023287,4]
[365715539,1749845442019,-839.73,0.00023287,4]
[365715540,1749845442029,-460.0,0.00023287,4]
[365715541,1749845442038,-1933.14,0.00023287,4]
[365715542,1749845442048,-460.0,0.00023287,4]
[365715543,1749845442058,-460.0,0.00023287,4]
[365715544,1749845442067,-460.0,0.00023287,4]
[365715545,1749845442077,-682.28,0.00023287,4]
[365715546,1749845442087,-495.45,0.00023287,4]
[365715547,1749845442096,-460.0,0.00023287,4]
[365715548,1749845442105,-460.0,0.00023287,4]
[365715549,1749845442115,-924.35,0.00023287,4]
[365715550,1749845442124,-460.0,0.00023287,4]
[365715551,1749845442134,-781.06,0.00023287,4]
[365715552,1749845442143,-460.0,0.00023287,4]
[365715553,1749845442152,-1397.18,0.00023287,4]
[365715554,1749845442162,-460.0,0.00023287,4]
[365715555,1749845442171,-460.0,0.00023287,4]
[365715556,1749845442181,-460.0,0.00023287,4]
[365715557,1749845442191,-1142.35,0.00023287,4]
[365715558,1749845442201,-460.0,0.00023287,4]
[365715559,1749845442211,-6689.93,0.00023287,4]
[365715560,1749845442221,-460.0,0.00023287,4]
[365715561,1749845442230,-460.0,0.00023287,4]
[365715562,1749845442239,-1821.09,0.00023287,4]
[365715563,1749845442256,-460.0,0.00023287,4]
[365715564,1749845442265,-1133.49,0.00023287,4]
[365715565,1749845442275,-2189.69,0.00023287,4]
[365715566,1749845442284,-460.0,0.00023287,4]
[365715567,1749845442294,-1115.91,0.00023287,4]
[365715568,1749845442303,-173.9379647,0.0002329,4]
[365715569,1749845442312,-173.9379647,0.0002329,4]
[365715570,1749845442322,-173.9379647,0.0002329,4]
[365715571,1749845442333,-173.93,0.0002329,4]
[365715572,1749845442343,-162.34210038,0.0002329,4]
[365715573,1749845442352,-162.34210038,0.0002329,4]
[365715574,1749845442362,-162.34210038,0.0002329,4]
[365715575,1749845442372,-162.34210038,0.0002329,4]
[365715576,1749845442381,-162.34210038,0.0002329,4]
[365715577,1749845442390,-162.34210038,0.0002329,4]
[365715578,1749845442400,-162.34210038,0.0002329,4]
[365715579,1749845442410,-3000.0,0.000233,2]
[365715580,1749845442419,-2300.41,0.000233,7]
[365715581,1749845442429,-3000.0,0.0002331,2]
[365715582,1749845442438,-3000.0,0.0002332,2]
[365715583,1749845442447,-3000.0,0.0002333,2]
[365715584,1749845442457,-3000.0,0.0002334,2]
[365715585,1749845442466,-3119.30591631,0.00023348,9]
[365715586,1749845442475,-3000.0,0.0002335,2]
[365715587,1749845442485,-3000.0,0.0002336,2]
[365715588,1749845442496,-3000.0,0.0002337,2]
[365715589,1749845442506,-5000.0,0.00023379,2]
[365715590,1749845442515,-3000.0,0.0002338,2]
[365715591,1749845442525,-3000.0,0.0002339,2]
[365715592,1749845442535,-3000.0,0.000234,2]
[365715593,1749845442544,-151.0,0.000234,9]
[365715594,1749845442554,-3000.0,0.0002341,2]
[365715595,1749845442564,-3000.0,0.0002342,2]
[365715596,1749845442573,-162.34210038,0.00023422,4]
[365715597,1749845442583,-3000.0,0.0002343,2]
[365715598,1749845442594,-653.0,0.00023431,2]
[365715599,1749845442603,-3000.0,0.0002344,2]
[365715600,1749845442616,-3000.0,0.0002345,2]
[365715601,1749845442626,-3119.30591631,0.00023452,9]
[365715602,1749845442636,-3000.0,0.0002346,2]
[365715603,1749845442646,-3000.0,0.0002347,2]
[365715604,1749845442655,-3000.0,0.0002348,2]
[365715605,1749845442664,-3000.0,0.0002349,2]
[365715606,1749845442673,-1476.43,0.00023493,2]
[365715607,1749845442682,-3000.0,0.000235,2]
[365715608,1749845442691,-111817.6,0.000235,2]
[365715609,1749845442700,-151.0,0.000235,7]
[365715610,1749845442710,-151.0,0.000235,7]
[365715611,1749845442719,-151.0,0.000235,7]
[365715612,1749845442729,-151.0,0.000235,7]
[365715613,1749845442739,-151.0,0.000235,7]
[365715614,1749845442750,-702.97768371,0.00023506,2]
[365715615,1749845442759,-3000.0,0.0002351,2]
[365715616,1749845442768,-3000.0,0.0002352,2]
[365715617,1749845442777,-513.9116651,0.00023521,2]
[365715618,1749845442786,-1000.0,0.00023521,2]
[365715619,1749845442796,-1000.0,0.00023521,2]
[365715620,1749845442805,-1005.00855098,0.00023521,2]
[365715621,1749845442814,-500.0,0.00023521,2]
[365715622,1749845442823,-1000.0,0.00023521,2]
[365715623,1749845442833,-1001.04561365,0.00023521,2]
[365715624,1749845442842,-1000.0,0.00023521,2]
[365715625,1749845442852,-1000.0,0.00023521,2]
[365715626,1749845442862,-1000.0,0.00023521,2]
[365715627,1749845442871,-504.28907664,0.00023521,2]
[365715628,1749845442881,-1000.0,0.00023521,2]
[365715629,1749845442890,-1200.0,0.00023521,2]
[365715630,1749845442900,-3000.0,0.0002353,2]
[365715631,1749845442909,-3000.0,0.0002354,2]
[365715632,1749845442919,-3000.0,0.0002355,2]
[365715633,1749845442928,-3119.30591631,0.00023555,9]
[365715634,1749845442938,-3000.0,0.0002356,2]
[365715635,1749845442948,-200.0,0.00023561,4]
[365715636,1749845442957,-200.0,0.00023561,4]
[365715637,1749845442966,-200.0,0.00023561,4]
[365715638,1749845442976,-200.0,0.00023561,4]
[365715639,1749845442993,-200.0,0.00023561,4]
[365715640,1749845443004,-200.0,0.00023561,4]
[365715641,1749845443014,-200.0,0.00023561,4]
[365715642,1749845443023,-200.0,0.00023561,4]
[365715643,1749845443033,-460.0,0.00023561,4]
[365715644,1749845443042,-334.05973084,0.00023561,4]
[365715645,1749845443052,-460.0,0.00023561,2]
[365715647,1749845443062,-460.0,0.00023561,4]
[365715649,1749845443071,-460.0,0.00023561,4]
[365715651,1749845443081,-1821.36,0.00023561,4]
[365715653,1749845443091,-1165.77,0.00023561,4]
[365715655,1749845443101,-839.73,0.00023561,4]
[365715656,1749845443110,-460.0,0.00023561,4]
[365715658,1749845443127,-1933.14,0.00023561,4]
[365715659,1749845443139,-460.0,0.00023561,4]
[365715660,1749845443148,-460.0,0.00023561,4]
[365715661,1749845443158,-460.0,0.00023561,4]
[365715662,1749845443168,-682.28,0.00023561,4]
[365715663,1749845443177,-495.45,0.00023561,4]
[365715664,1749845443187,-460.0,0.00023561,4]
[365715665,1749845443196,-460.0,0.00023561,4]
[365715666,1749845443205,-924.35,0.00023561,4]
[365715667,1749845443215,-460.0,0.00023561,4]
[365715668,1749845443224,-781.06,0.00023561,4]
[365715669,1749845443234,-460.0,0.00023561,4]
[365715670,1749845443247,-1397.18,0.00023561,4]
[365715671,1749845443257,-460.0,0.00023561,4]
[365715672,1749845443266,-460.0,0.00023561,4]
[365715673,1749845443276,-308.67,0.00023561,4]
[365715674,1749845443286,-1142.35,0.00023561,4]
[365715675,1749845443295,-460.0,0.00023561,4]
[365715676,1749845443304,-6689.93,0.00023561,4]
[365715677,1749845443313,-460.0,0.00023561,4]
[365715678,1749845443322,-460.0,0.00023561,4]
[365715679,1749845443332,-1821.09,0.00023561,4]
[365715680,1749845443342,-460.0,0.00023561,4]
[365715681,1749845443351,-1133.49,0.00023561,4]
[365715682,1749845443361,-2189.69,0.00023561,4]
[365715684,1749845443370,-460.0,0.00023561,4]
[365715686,1749845443380,-1115.91,0.00023561,4]
[365715687,1749845443388,-1000.0,0.00023566,2]
[365715688,1749845443397,-3000.0,0.0002357,2]
[365715689,1749845443407,-3000.0,0.0002358,2]
[365715690,1749845443418,-3000.0,0.0002359,2]
[365715691,1749845443427,-3000.0,0.000236,2]
[365715692,1749845443436,-153.164763,0.000236,7]
[365715693,1749845443445,-151.0,0.000236,7]
[365715694,1749845443455,-4541.27,0.000236,7]
[365715695,1749845443465,-3000.0,0.0002361,2]
[365715696,1749845443474,-497.99531911,0.00023616,2]
[365715698,1749845443484,-3000.0,0.0002362,2]
[365715700,1749845443494,-3000.0,0.0002363,2]
[365715702,1749845443504,-3000.0,0.0002364,2]
[365715704,1749845443513,-3000.0,0.0002365,2]
[365715705,1749845443523,-3119.30591631,0.00023659,9]
[365715706,1749845443532,-3000.0,0.0002366,2]
[365715707,1749845443542,-162.34210038,0.00023661,4]
[365715708,1749845443552,-3000.0,0.0002367,2]
[365715709,1749845443561,-3000.0,0.0002368,2]
[365715710,1749845443571,-3000.0,0.0002369,2]
[365715711,1749845443581,-3000.0,0.000237,2]
[365715712,1749845443590,-151.0,0.000237,10]
[365715713,1749845443600,-3000.0,0.0002371,2]
[365715714,1749845443609,-3000.0,0.0002372,2]
[365715715,1749845443619,-166.50369971,0.00023726,2]
[365715716,1749845443629,-166.50369972,0.00023726,2]
[365715717,1749845443639,-501.89008847,0.00023728,2]
[365715718,1749845443648,-3000.0,0.0002373,2]
[365715719,1749845443658,-4166.00833,0.0002374,2]
[365715720,1749845443667,-3119.30591631,0.00023762,9]
[365715721,1749845443677,-151.0,0.000238,7]
[365715722,1749845443686,-151.0,0.000238,7]
[365715723,1749845443696,-151.0,0.000238,7]
[365715724,1749845443706,-151.0,0.000238,7]
[365715725,1749845443715,-151.0,0.000238,7]
[365715726,1749845443724,-151.0,0.000238,7]
[365715727,1749845443734,-151.0,0.000238,7]
[365715728,1749845443743,-151.0,0.000238,7]
[365715729,1749845443753,-151.0,0.000238,7]
[365715730,1749845443763,-151.0,0.000238,7]
[365715731,1749845443772,-1121.84,0.000238,2]
[365715732,1749845443781,-151.0,0.000238,7]
[365715733,1749845443791,-5150.3003,0.000238,2]
[365715734,1749845443800,-151.0,0.000238,7]
[365715735,1749845443810,-151.0,0.000238,7]
[365715736,1749845443819,-151.498,0.00023815,2]
[365715737,1749845443828,-250.0,0.00023815,2]
[365715738,1749845443838,-244.659,0.00023815,2]
[365715739,1749845443847,-258.376,0.00023815,2]
[365715740,1749845443857,-215.661,0.00023815,2]
[365715741,1749845443866,-964.0,0.00023815,2]
[365715742,1749845443876,-2160.0,0.00023815,2]
[365715743,1749845443885,-1000.0,0.00023821,2]
[365715744,1749845443895,-460.0,0.00023835,2]
[365715745,1749845443905,-580.92026302,0.00023835,4]
[365715746,1749845443914,-460.0,0.00023835,4]
[365715747,1749845443924,-1821.36,0.00023835,4]
[365715748,1749845443933,-1165.77,0.00023835,4]
[365715749,1749845443944,-839.73,0.00023835,4]
[365715750,1749845443954,-460.0,0.00023835,4]
[365715751,1749845443964,-1933.14,0.00023835,4]
[365715752,1749845443973,-460.0,0.00023835,4]
[365715753,1749845443983,-460.0,0.00023835,4]
[365715754,1749845443992,-460.0,0.00023835,4]
[365715755,1749845444006,-682.28,0.00023835,4]
[365715756,1749845444016,-495.45,0.00023835,4]
[365715757,1749845444026,-460.0,0.00023835,4]
[365715758,1749845444037,-460.0,0.00023835,4]
[365715759,1749845444047,-924.35,0.00023835,4]
[365715760,1749845444056,-460.0,0.00023835,4]
[365715761,1749845444066,-781.06,0.00023835,4]
[365715762,1749845444075,-460.0,0.00023835,4]
[365715763,1749845444085,-1397.18,0.00023835,4]
[365715764,1749845444095,-460.0,0.00023835,4]
[365715765,1749845444105,-460.0,0.00023835,4]
[365715766,1749845444114,-1142.35,0.00023835,4]
[365715767,1749845444124,-460.0,0.00023835,4]
[365715768,1749845444134,-6689.93,0.00023835,4]
[365715769,1749845444235,-460.0,0.00023835,4]
[365715770,1749845444249,-460.0,0.00023835,4]
[365715771,1749845444258,-1821.09,0.00023835,4]
[365715772,1749845444268,-460.0,0.00023835,4]
[365715773,1749845444277,-1133.49,0.00023835,4]
[365715774,1749845444286,-2189.69,0.00023835,4]
[365715775,1749845444296,-460.0,0.00023835,4]
[365715776,1749845444305,-1115.91,0.00023835,4]
[365715777,1749845444314,-3119.30591631,0.00023866,10]
[365715778,1749845444325,-151.0,0.000239,6]
[365715779,1749845444335,-1859.79712039,0.000239,2]
[365715780,1749845444344,-162.34,0.000239,4]
[365715781,1749845444354,-5000.0,0.00023927,2]
[365715782,1749845444364,-3119.30591631,0.00023969,10]
[365715783,1749845444374,-150.0,0.00023973,2]
[365715784,1749845444384,-150.0,0.00023973,2]
[365715785,1749845444395,-22327.64685544,0.00023998,2]
[365715786,1749845444404,-151.0,0.00023998,7]
[365715787,1749845444414,-151.0,0.00023998,7]
[365715788,1749845444423,-151.598266,0.00023998,7]
[365715789,1749845444433,-151.0,0.00023998,7]
[365715790,1749845444442,-160.430902,0.00023998,7]
[365715791,1749845444452,-160.430902,0.00023998,7]
[365715792,1749845444461,-577.732995,0.00023998,7]
[365715793,1749845444471,-577.732995,0.00023998,7]
[365715794,1749845444481,-151.0,0.00023998,7]
[365715795,1749845444491,-151.0,0.00023998,7]
[365715796,1749845444502,-151.0,0.00023998,7]
[365715797,1749845444511,-151.0,0.00023998,7]
[365715798,1749845444521,-151.0,0.00023998,7]
[365715799,1749845444531,-151.0,0.00023998,7]
[365715800,1749845444540,-151.0,0.00023998,7]
[365715801,1749845444549,-151.0,0.00023998,7]
[365715802,1749845444559,-151.0,0.00023998,7]
[365715803,1749845444568,-151.0,0.00023998,2]
[365715804,1749845444578,-151.0,0.00023998,7]
[365715805,1749845444587,-151.0,0.00023998,7]
[365715806,1749845444596,-5150.3003,0.00023998,2]
[365715807,1749845444605,-151.0,0.00023998,7]
[365715808,1749845444615,-151.0,0.00023998,7]
[365715809,1749845444625,-151.0,0.00023998,7]
[365715810,1749845444635,-151.0,0.00023998,7]
[365715811,1749845444644,-151.0,0.00023998,7]
[365715812,1749845444653,-242.426828,0.00023998,7]
[365715813,1749845444663,-242.426828,0.00023998,7]
[365715814,1749845444672,-1842.176502,0.00023998,3]
[365715815,1749845444682,-151.0,0.00023998,7]
[365715816,1749845444691,-151.0,0.00023998,7]
[365715817,1749845444700,-30013.0,0.00024,2]
[365715818,1749845444710,-10010.03909984,0.00024,2]
[365715819,1749845444720,-135910.58659914,0.00024,35]
[365715820,1749845444730,-493.19616532,0.00024,60]
[365715821,1749845444740,-5430.05034855,0.00024,3]
[365715822,1749845444751,-313.419597,0.00024,7]
[365715823,1749845444760,-313.419597,0.00024,7]
[365715824,1749845444772,-151.0,0.00024,7]
[365715825,1749845444783,-151.0,0.00024,7]
[365715826,1749845444792,-151.0,0.00024,7]
[365715827,1749845444801,-151.0,0.00024,7]
[365715828,1749845444811,-272.251972,0.00024,7]
[365715829,1749845444821,-272.251972,0.00024,7]
[365715830,1749845444830,-143140.66,0.00024,7]
[365715831,1749845444840,-151.0,0.00024,7]
[365715832,1749845444849,-151.0,0.00024,7]
[365715833,1749845444859,-151.0,0.00024,7]
[365715834,1749845444868,-158.36,0.00024,2]
[365715835,1749845444877,-151.0,0.00024,7]
[365715836,1749845444886,-151.0,0.00024,7]
[365715837,1749845444895,-151.0,0.00024,7]
[365715838,1749845444905,-151.0,0.00024,7]
[365715839,1749845444914,-424.32678023,0.00024,3]
[365715840,1749845444923,-424.32678023,0.00024,7]
[365715841,1749845444933,-229.78555783,0.00024,3]
[365715842,1749845444942,-229.78555783,0.00024,7]
[365715843,1749845444954,-160.0,0.00024,3]
[365715844,1749845444963,-160.0,0.00024,7]
[365715845,1749845444973,-160.0,0.00024,3]
[365715846,1749845444982,-160.0,0.00024,7]
[365715847,1749845444992,-835.28007164,0.00024,3]
[365715848,1749845445003,-835.28007164,0.00024,7]
[365715849,1749845445013,-151.0,0.00024,7]
[365715850,1749845445023,-153.057035,0.00024,7]
[365715851,1749845445033,-151.0,0.00024,7]
[365715852,1749845445042,-1859.79712031,0.00024006,2]
[365715853,1749845445052,-1500.0,0.00024068,2]
[365715854,1749845445061,-1500.0,0.00024068,2]
[365715855,1749845445071,-1500.0,0.00024068,2]
[365715856,1749845445081,-1500.0,0.00024068,2]
[365715857,1749845445090,-1500.0,0.00024068,2]
[365715858,1749845445100,-1500.0,0.00024068,2]
[365715859,1749845445109,-1800.0,0.00024068,2]
[365715860,1749845445118,-587.0,0.00024069,2]
[365715861,1749845445128,-3119.30591631,0.00024072,10]
[365715862,1749845445139,-151.0,0.000241,7]
[365715863,1749845445148,-151.0,0.000241,7]
[365715864,1749845445158,-151.0,0.000241,7]
[365715865,1749845445167,-151.0,0.000241,7]
[365715866,1749845445177,-151.736753,0.000241,7]
[365715867,1749845445186,-160.0,0.00024107,2]
[365715868,1749845445196,-460.0,0.00024109,2]
[365715869,1749845445206,-460.0,0.00024109,4]
[365715870,1749845445215,-1821.36,0.00024109,4]
[365715871,1749845445226,-1165.77,0.00024109,4]
[365715872,1749845445235,-839.73,0.00024109,4]
[365715873,1749845445246,-460.0,0.00024109,4]
[365715874,1749845445258,-1933.14,0.00024109,4]
[365715875,1749845445267,-460.0,0.00024109,4]
[365715876,1749845445276,-550.96944795,0.00024109,4]
[365715877,1749845445285,-460.0,0.00024109,4]
[365715878,1749845445296,-682.28,0.00024109,4]
[365715879,1749845445305,-495.45,0.00024109,4]
[365715880,1749845445315,-609.36390361,0.00024109,4]
[365715881,1749845445325,-460.0,0.00024109,4]
[365715882,1749845445335,-924.35,0.00024109,4]
[365715883,1749845445344,-460.0,0.00024109,4]
[365715884,1749845445354,-781.06,0.00024109,4]
[365715885,1749845445363,-460.0,0.00024109,4]
[365715886,1749845445372,-1397.18,0.00024109,4]
[365715887,1749845445392,-460.0,0.00024109,4]
[365715888,1749845445406,-460.0,0.00024109,4]
[365715889,1749845445416,-1142.35,0.00024109,4]
[365715890,1749845445426,-162.76,0.00024109,4]
[365715891,1749845445435,-6689.93,0.00024109,4]
[365715892,1749845445445,-460.0,0.00024109,4]
[365715893,1749845445454,-460.0,0.00024109,4]
[365715894,1749845445466,-1821.09,0.00024109,4]
[365715895,1749845445476,-460.0,0.00024109,4]
[365715896,1749845445486,-1133.49,0.00024109,4]
[365715897,1749845445495,-2189.69,0.00024109,4]
[365715898,1749845445504,-460.0,0.00024109,4]
[365715899,1749845445513,-1115.91,0.00024109,4]
[365715900,1749845445523,-158.8399287,0.0002411,2]
[365715901,1749845445533,-237.9898302,0.0002411,2]
[365715902,1749845445542,-176.9539549,0.0002411,2]
[365715903,1749845445560,-166.8102269,0.0002411,2]
[365715904,1749845445578,-573.6747916,0.0002411,2]
[365715905,1749845445587,-176.9539549,0.0002411,2]
[365715906,1749845445596,-158.8399287,0.0002411,2]
[365715907,1749845445606,-573.6747916,0.0002411,2]
[365715908,1749845445615,-176.9539549,0.0002411,2]
[365715909,1749845445625,-158.8399287,0.0002411,2]
[365715910,1749845445635,-573.6747916,0.0002411,2]
[365715911,1749845445644,-153.0,0.0002411,2]
[365715912,1749845445653,-153.0,0.0002411,2]
[365715913,1749845445662,-1859.79712031,0.00024112,2]
[365715914,1749845445672,-1294.29669004,0.00024114,2]
[365715915,1749845445682,-5888.0,0.00024158,2]
[365715916,1749845445692,-473.0,0.0002416,2]
[365715917,1749845445704,-3119.30591631,0.00024176,10]
[365715918,1749845445713,-215.0738,0.000242,2]
[365715919,1749845445723,-12531.02669373,0.000242,10]
[365715920,1749845445733,-151.0,0.000242,7]
[365715921,1749845445742,-151.0,0.000242,7]
[365715922,1749845445752,-424.32678023,0.000242,10]
[365715923,1749845445762,-315.3059208,0.000242,10]
[365715924,1749845445771,-229.78555783,0.000242,10]
[365715925,1749845445781,-160.0,0.000242,10]
[365715926,1749845445790,-835.28007164,0.000242,10]
[365715927,1749845445799,-473.0,0.00024209,2]
[365715928,1749845445808,-1859.79712031,0.00024218,2]
[365715929,1749845445818,-473.0,0.00024247,2]
[365715930,1749845445829,-151.0,0.0002427,7]
[365715931,1749845445838,-242.426828,0.0002427,7]
[365715932,1749845445848,-242.426828,0.0002427,7]
[365715933,1749845445857,-151.0,0.0002427,7]
[365715934,1749845445867,-3119.30591631,0.00024279,10]
[365715935,1749845445876,-2200.0,0.00024288,2]
[365715936,1749845445885,-473.0,0.00024317,2]
[365715937,1749845445895,-4375.81373947,0.00024321,2]
[365715938,1749845445905,-3077.44739463,0.00024321,2]
[365715939,1749845445915,-130604.59272966,0.00024321,3]
[365715940,1749845445924,-151.0,0.00024321,7]
[365715941,1749845445933,-151.0,0.00024321,7]
[365715942,1749845445942,-151.0,0.00024321,7]
[365715943,1749845445952,-151.0,0.00024321,7]
[365715944,1749845445961,-378.580707,0.00024321,7]
[365715945,1749845445971,-151.0,0.00024321,7]
[365715946,1749845445980,-160.430902,0.00024321,7]
[365715947,1749845445990,-160.430902,0.00024321,7]
[365715948,1749845446001,-577.732995,0.00024321,7]
[365715949,1749845446010,-577.732995,0.00024321,7]
[365715950,1749845446018,-151.0,0.00024321,7]
[365715951,1749845446028,-151.0,0.00024321,7]
[365715952,1749845446038,-151.0,0.00024321,7]
[365715953,1749845446047,-151.0,0.00024321,7]
[365715954,1749845446056,-151.0,0.00024321,7]
[365715955,1749845446066,-151.0,0.00024321,7]
[365715956,1749845446075,-151.0,0.00024321,7]
[365715957,1749845446086,-151.0,0.00024321,7]
[365715958,1749845446096,-151.0,0.00024321,7]
[365715959,1749845446105,-151.0,0.00024321,7]
[365715960,1749845446115,-5150.3003,0.00024321,2]
[365715961,1749845446124,-213.63862,0.00024321,7]
[365715962,1749845446134,-151.0,0.00024321,7]
[365715963,1749845446144,-213.63862,0.00024321,7]
[365715964,1749845446154,-151.0,0.00024321,7]
[365715965,1749845446164,-473.0,0.00024322,2]
[365715966,1749845446174,-1859.79712031,0.00024324,2]
[365715967,1749845446184,-473.0,0.00024357,2]
[365715968,1749845446193,-3119.30591631,0.00024383,11]
[365715969,1749845446203,-151.0,0.00024383,7]
[365715970,1749845446212,-460.0,0.00024383,2]
[365715971,1749845446222,-460.0,0.00024383,4]
[365715972,1749845446231,-151.0,0.00024383,7]
[365715973,1749845446241,-151.0,0.00024383,7]
[365715974,1749845446257,-1821.36,0.00024383,4]
[365715975,1749845446267,-1165.77,0.00024383,4]
[365715976,1749845446276,-839.73,0.00024383,4]
[365715978,1749845446286,-460.0,0.00024383,4]
[365715979,1749845446295,-1933.14,0.00024383,4]